[Event "***Titled Tuesday 3|2 Blitz"]
[Site "Chess.com"]
[Date "2017.02.07"]
[Round "1"]
[White "Carolina-moon"]
[Black "PaulfromSPb"]
[Result "0-1"]
[WhiteElo "2046"]
[BlackElo "2453"]
[TimeControl "180+2"]
[EndTime "13:08:20 PST"]
[Termination "PaulfromSPb won by resignation"]

1. e4 {[%clk 0:03:02]} 1... c5 {[%clk 0:03:00.7]} 2. Nf3 {[%clk 0:03:02.4]} 2...
d6 {[%clk 0:03:00.1]} 3. Bb5+ {[%clk 0:02:52]} 3... Nd7 {[%clk 0:03:00.7]} 4.
O-O {[%clk 0:02:50.6]} 4... Nf6 {[%clk 0:03:01.5]} 5. Re1 {[%clk 0:02:50.9]}
5... g6 {[%clk 0:03:02]} 6. c3 {[%clk 0:02:51.6]} 6... a6 {[%clk 0:03:02.9]} 7.
Bd3 {[%clk 0:02:50]} 7... Bg7 {[%clk 0:03:03.2]} 8. Bc2 {[%clk 0:02:51.4]} 8...
O-O {[%clk 0:03:02.6]} 9. d4 {[%clk 0:02:52.4]} 9... e5 {[%clk 0:03:03.9]} 10.
Nbd2 {[%clk 0:02:48.3]} 10... b5 {[%clk 0:03:02.3]} 11. a4 {[%clk 0:02:48.5]}
11... Bb7 {[%clk 0:03:03.1]} 12. Nf1 {[%clk 0:02:44.3]} 12... Qc7 {[%clk
0:02:58.4]} 13. Ng3 {[%clk 0:02:31.6]} 13... Rfe8 {[%clk 0:02:49.4]} 14. a5
{[%clk 0:02:17.9]} 14... Rad8 {[%clk 0:02:37.4]} 15. d5 {[%clk 0:02:17.9]} 15...
c4 {[%clk 0:02:37]} 16. Be3 {[%clk 0:02:03.5]} 16... h6 {[%clk 0:02:35.6]} 17.
Qd2 {[%clk 0:02:03.7]} 17... Ng4 {[%clk 0:02:34.2]} 18. h3 {[%clk 0:01:51.5]}
18... Nxe3 {[%clk 0:02:34.8]} 19. Qxe3 {[%clk 0:01:46.5]} 19... Nc5 {[%clk
0:02:34.9]} 20. Nh2 {[%clk 0:01:41.7]} 20... Kh7 {[%clk 0:02:26.7]} 21. Ng4
{[%clk 0:01:36.4]} 21... h5 {[%clk 0:02:26.7]} 22. Nh2 {[%clk 0:01:35.5]} 22...
Bh6 {[%clk 0:02:27.9]} 23. Qe2 {[%clk 0:01:32.1]} 23... Rf8 {[%clk 0:02:23.9]}
24. Nxh5 {[%clk 0:01:15.7]} 24... gxh5 {[%clk 0:02:24.6]} 25. Qxh5 {[%clk
0:01:16.9]} 25... Qe7 {[%clk 0:02:25.1]} 26. Nf3 {[%clk 0:01:05.2]} 26... Rg8
{[%clk 0:02:18]} 27. h4 {[%clk 0:01:00.4]} 27... Bc8 {[%clk 0:02:16.9]} 28. Ng5+
{[%clk 0:00:59.7]} 28... Kg7 {[%clk 0:02:16.4]} 29. Re3 {[%clk 0:00:56.4]} 29...
Bxg5 {[%clk 0:02:15]} 30. Rg3 {[%clk 0:00:54.9]} 30... Kf8 {[%clk 0:02:12.4]}
31. hxg5 {[%clk 0:00:54.2]} 31... Ke8 {[%clk 0:02:08.9]} 32. Re1 {[%clk
0:00:45.2]} 32... Kd7 {[%clk 0:02:09.4]} 33. Rf3 {[%clk 0:00:40.7]} 33... Rdf8
{[%clk 0:02:07]} 34. Rf6 {[%clk 0:00:39.9]} 34... Kc7 {[%clk 0:02:07]} 35. Re3
{[%clk 0:00:39.8]} 35... Nd7 {[%clk 0:02:07.7]} 36. Ref3 {[%clk 0:00:28.2]}
36... Nxf6 {[%clk 0:02:07.9]} 37. gxf6 {[%clk 0:00:29.5]} 37... Qd7 {[%clk
0:02:07.7]} 38. Qh6 {[%clk 0:00:30.4]} 38... Re8 {[%clk 0:02:02.1]} 39. Qe3
{[%clk 0:00:31.1]} 39... Bb7 {[%clk 0:01:56.2]} 40. b3 {[%clk 0:00:27.3]} 40...
cxb3 {[%clk 0:01:56.2]} 41. Bxb3 {[%clk 0:00:24.7]} 41... Kb8 {[%clk 0:01:57.3]}
42. c4 {[%clk 0:00:25.1]} 42... Rc8 {[%clk 0:01:55]} 43. cxb5 {[%clk 0:00:23.5]}
43... Qxb5 {[%clk 0:01:55.6]} 44. g3 {[%clk 0:00:21.4]} 44... Rh8 {[%clk
0:01:52.5]} 45. Kg2 {[%clk 0:00:20.9]} 45... Qc5 {[%clk 0:01:51.2]} 46. Qd3
{[%clk 0:00:19.9]} 46... Qc1 {[%clk 0:01:51.5]} 47. Bd1 {[%clk 0:00:20.2]} 47...
Rc3 {[%clk 0:01:49]} 48. Qe2 {[%clk 0:00:19.6]} 48... Rxf3 {[%clk 0:01:48.8]}
49. Qxf3 {[%clk 0:00:21.5]} 49... Qd2 {[%clk 0:01:46.4]} 50. Be2 {[%clk
0:00:21.8]} 50... Qxa5 {[%clk 0:01:45]} 51. Bf1 {[%clk 0:00:22.7]} 51... Qb4
{[%clk 0:01:44.9]} 52. Qf5 {[%clk 0:00:21.2]} 52... a5 {[%clk 0:01:45.4]} 53.
Qg5 {[%clk 0:00:22.1]} 53... Qxe4+ {[%clk 0:01:45.7]} 54. f3 {[%clk 0:00:21.5]}
54... Qxd5 {[%clk 0:01:46.6]} 55. Qg7 {[%clk 0:00:21.6]} 55... Qxf3+ {[%clk
0:01:47.2]} 0-1

[Event "***Titled Tuesday 3|2 Blitz"]
[Site "Chess.com"]
[Date "2017.02.07"]
[Round "1"]
[White "samolo"]
[Black "Rickstereo"]
[Result "1-0"]
[WhiteElo "2520"]
[BlackElo "2218"]
[TimeControl "180+2"]
[EndTime "13:08:23 PST"]
[Termination "samolo won by resignation"]

1. Nf3 {[%clk 0:03:02]} 1... Nf6 {[%clk 0:02:59.6]} 2. g3 {[%clk 0:02:59.5]}
2... g6 {[%clk 0:03:00.5]} 3. Bg2 {[%clk 0:03:00.7]} 3... Bg7 {[%clk 0:02:58.3]}
4. O-O {[%clk 0:03:02.6]} 4... O-O {[%clk 0:02:59.1]} 5. d3 {[%clk 0:03:04]}
5... c5 {[%clk 0:02:40.4]} 6. c3 {[%clk 0:03:02.3]} 6... d5 {[%clk 0:02:33.7]}
7. a3 {[%clk 0:03:01.8]} 7... Nc6 {[%clk 0:02:34.3]} 8. b4 {[%clk 0:03:02.7]}
8... b6 {[%clk 0:02:25.5]} 9. Bb2 {[%clk 0:03:01]} 9... Ba6 {[%clk 0:02:12]} 10.
Nbd2 {[%clk 0:02:58.4]} 10... Rc8 {[%clk 0:02:04.5]} 11. Qa4 {[%clk 0:02:30.6]}
11... Bb7 {[%clk 0:02:04]} 12. Rac1 {[%clk 0:02:28.7]} 12... Ba8 {[%clk
0:01:40]} 13. Nb3 {[%clk 0:02:18.9]} 13... c4 {[%clk 0:01:38.2]} 14. Nbd4 {[%clk
0:02:10.2]} 14... cxd3 {[%clk 0:01:32.8]} 15. exd3 {[%clk 0:02:10.8]} 15... Qd7
{[%clk 0:01:24.3]} 16. Nxc6 {[%clk 0:02:01.8]} 16... Bxc6 {[%clk 0:01:23.4]} 17.
Qb3 {[%clk 0:02:02.9]} 17... Ba4 {[%clk 0:01:18.7]} 18. Qa2 {[%clk 0:02:03.8]}
18... Rfe8 {[%clk 0:01:17.5]} 19. Rfe1 {[%clk 0:02:04.2]} 19... Bb5 {[%clk
0:01:13.9]} 20. c4 {[%clk 0:01:58.4]} 20... dxc4 {[%clk 0:01:05.7]} 21. dxc4
{[%clk 0:02:00.3]} 21... Ba6 {[%clk 0:01:04.4]} 22. Ne5 {[%clk 0:01:53.7]} 22...
Qc7 {[%clk 0:01:03.9]} 23. b5 {[%clk 0:01:42.7]} 23... Bb7 {[%clk 0:01:04.4]}
24. c5 {[%clk 0:01:43.6]} 24... Bxg2 {[%clk 0:01:04]} 25. Qxf7+ {[%clk
0:01:43.5]} 25... Kh8 {[%clk 0:01:04.5]} 26. Kxg2 {[%clk 0:01:44.8]} 26... bxc5
{[%clk 0:01:03.7]} 27. Qe6 {[%clk 0:01:38.2]} 27... Bf8 {[%clk 0:00:44.2]} 28.
a4 {[%clk 0:01:31]} 28... Qb6 {[%clk 0:00:38]} 29. Nc6 {[%clk 0:01:28.2]} 29...
Bg7 {[%clk 0:00:33.1]} 30. Kg1 {[%clk 0:01:25.5]} 30... a6 {[%clk 0:00:32.3]}
31. Qc4 {[%clk 0:00:49.3]} 31... axb5 {[%clk 0:00:30.7]} 32. axb5 {[%clk
0:00:51.2]} 32... Rxc6 {[%clk 0:00:29.9]} 33. bxc6 {[%clk 0:00:50.3]} 33... Qxb2
{[%clk 0:00:28.8]} 34. c7 {[%clk 0:00:49.9]} 34... Qb7 {[%clk 0:00:16.7]} 35.
Qxc5 {[%clk 0:00:49.5]} 35... Qc8 {[%clk 0:00:17.5]} 36. Rxe7 {[%clk 0:00:48.4]}
36... Rxe7 {[%clk 0:00:17]} 37. Qxe7 {[%clk 0:00:50.3]} 1-0

[Event "***Titled Tuesday 3|2 Blitz"]
[Site "Chess.com"]
[Date "2017.02.07"]
[Round "1"]
[White "ER404"]
[Black "ftorodent"]
[Result "0-1"]
[WhiteElo "2147"]
[BlackElo "2502"]
[TimeControl "180+2"]
[EndTime "13:08:23 PST"]
[Termination "ftorodent won on time"]

1. e4 {[%clk 0:03:02]} 1... e6 {[%clk 0:02:59.1]} 2. d4 {[%clk 0:02:59.7]} 2...
d5 {[%clk 0:03:00.1]} 3. Nd2 {[%clk 0:03:00.7]} 3... Be7 {[%clk 0:02:59.6]} 4.
e5 {[%clk 0:02:50.6]} 4... c5 {[%clk 0:02:59.1]} 5. c3 {[%clk 0:02:51.5]} 5...
Nc6 {[%clk 0:02:46.7]} 6. Bd3 {[%clk 0:02:52.5]} 6... f5 {[%clk 0:02:46.3]} 7.
Ne2 {[%clk 0:02:50.5]} 7... Nh6 {[%clk 0:02:42.4]} 8. Nf3 {[%clk 0:02:34.8]}
8... Nf7 {[%clk 0:02:42.5]} 9. h4 {[%clk 0:02:33.6]} 9... Qb6 {[%clk 0:02:33.1]}
10. O-O {[%clk 0:02:22]} 10... Bd7 {[%clk 0:02:31.8]} 11. c4 {[%clk 0:01:51.3]}
11... dxc4 {[%clk 0:02:20.8]} 12. Bxc4 {[%clk 0:01:51.8]} 12... Nxd4 {[%clk
0:02:21.9]} 13. Nexd4 {[%clk 0:01:32.9]} 13... cxd4 {[%clk 0:02:22.7]} 14. Qxd4
{[%clk 0:01:34.8]} 14... Bc5 {[%clk 0:01:48]} 15. Qf4 {[%clk 0:01:31.4]} 15...
Bb5 {[%clk 0:01:33]} 16. Bd2 {[%clk 0:01:10.1]} 16... O-O {[%clk 0:01:29.1]} 17.
b4 {[%clk 0:00:54.7]} 17... Be7 {[%clk 0:01:15.5]} 18. Be3 {[%clk 0:00:47]}
18... Qa6 {[%clk 0:01:15]} 19. Bxb5 {[%clk 0:00:47.6]} 19... Qxb5 {[%clk
0:01:16.2]} 20. a4 {[%clk 0:00:45]} 20... Qxb4 {[%clk 0:01:16.3]} 21. Qxb4
{[%clk 0:00:45.6]} 21... Bxb4 {[%clk 0:01:17]} 22. Rab1 {[%clk 0:00:28.3]} 22...
a5 {[%clk 0:01:17.8]} 23. Nd2 {[%clk 0:00:14.4]} 23... Nxe5 {[%clk 0:01:14.2]}
24. Nb3 {[%clk 0:00:12.6]} 24... Nc4 {[%clk 0:01:05]} 25. Rfc1 {[%clk
0:00:06.1]} 25... Nxe3 {[%clk 0:01:04.7]} 26. fxe3 {[%clk 0:00:08]} 26... Rac8
{[%clk 0:01:03.2]} 27. Nd4 {[%clk 0:00:09.5]} 27... Kf7 {[%clk 0:01:04.2]} 28.
Nf3 {[%clk 0:00:08.7]} 28... Kf6 {[%clk 0:01:04.3]} 29. Kf2 {[%clk 0:00:09]}
29... Rfd8 {[%clk 0:01:01.8]} 30. Ke2 {[%clk 0:00:09.8]} 30... b6 {[%clk
0:00:58.5]} 31. Nd4 {[%clk 0:00:10.7]} 31... Bc5 {[%clk 0:00:53]} 32. Nb5 {[%clk
0:00:07.3]} 32... Rd7 {[%clk 0:00:49.7]} 33. Rc3 {[%clk 0:00:05.2]} 33... Rcd8
{[%clk 0:00:50.2]} 34. Rb2 {[%clk 0:00:06.7]} 34... Rd1 {[%clk 0:00:43.9]} 35.
Rbc2 {[%clk 0:00:02.7]} 35... Rh1 {[%clk 0:00:44]} 0-1

[Event "***Titled Tuesday 3|2 Blitz"]
[Site "Chess.com"]
[Date "2017.02.07"]
[Round "1"]
[White "Ar4uha"]
[Black "HouseOfDurin"]
[Result "1-0"]
[WhiteElo "2423"]
[BlackElo "1883"]
[TimeControl "180+2"]
[EndTime "13:08:25 PST"]
[Termination "Ar4uha won by resignation"]

1. e4 {[%clk 0:03:02]} 1... c5 {[%clk 0:03:00.4]} 2. Nf3 {[%clk 0:03:01.7]} 2...
Nc6 {[%clk 0:03:00.8]} 3. Bb5 {[%clk 0:03:02.3]} 3... g6 {[%clk 0:02:59.3]} 4.
O-O {[%clk 0:03:02.5]} 4... Bg7 {[%clk 0:02:58.9]} 5. Re1 {[%clk 0:03:04.1]}
5... e5 {[%clk 0:02:58.3]} 6. Bxc6 {[%clk 0:03:03.5]} 6... bxc6 {[%clk
0:03:00.2]} 7. d3 {[%clk 0:03:01]} 7... Ne7 {[%clk 0:02:57.5]} 8. Nbd2 {[%clk
0:02:59.2]} 8... O-O {[%clk 0:02:54.1]} 9. Nc4 {[%clk 0:03:00.4]} 9... d6 {[%clk
0:02:52.8]} 10. a3 {[%clk 0:02:59.6]} 10... h6 {[%clk 0:02:43.9]} 11. b4 {[%clk
0:02:58.6]} 11... cxb4 {[%clk 0:02:12.9]} 12. axb4 {[%clk 0:03:00.5]} 12... Be6
{[%clk 0:02:14.3]} 13. Be3 {[%clk 0:02:56.6]} 13... Bxc4 {[%clk 0:02:09.3]} 14.
dxc4 {[%clk 0:02:58.5]} 14... Qc7 {[%clk 0:02:10.5]} 15. Qd2 {[%clk 0:02:52.4]}
15... Kh7 {[%clk 0:02:10]} 16. Red1 {[%clk 0:02:50.6]} 16... Rfd8 {[%clk
0:02:10.5]} 17. Ra5 {[%clk 0:02:44.4]} 17... f5 {[%clk 0:02:03.4]} 18. Qd3
{[%clk 0:02:28.3]} 18... c5 {[%clk 0:01:14.7]} 19. c3 {[%clk 0:02:13.9]} 19...
Nc6 {[%clk 0:01:07.4]} 20. Ra4 {[%clk 0:02:09.3]} 20... fxe4 {[%clk 0:01:05.8]}
21. Qxe4 {[%clk 0:02:06.7]} 21... cxb4 {[%clk 0:00:54]} 22. cxb4 {[%clk
0:02:08.6]} 22... Ne7 {[%clk 0:00:49.7]} 23. Rda1 {[%clk 0:01:55.3]} 23... d5
{[%clk 0:00:37.7]} 24. cxd5 {[%clk 0:01:47.2]} 24... Rxd5 {[%clk 0:00:35.1]} 25.
h3 {[%clk 0:01:39.8]} 25... a5 {[%clk 0:00:35]} 26. Bd2 {[%clk 0:01:04.3]} 26...
Rad8 {[%clk 0:00:15.9]} 27. bxa5 {[%clk 0:00:24.1]} 27... Rxd2 {[%clk
0:00:16.5]} 28. Nxd2 {[%clk 0:00:26]} 28... Rxd2 {[%clk 0:00:17.6]} 29. a6
{[%clk 0:00:27.9]} 29... Nc6 {[%clk 0:00:10.9]} 30. a7 {[%clk 0:00:25.4]} 30...
Nxa7 {[%clk 0:00:11.5]} 31. Rxa7 {[%clk 0:00:27.3]} 31... Qd6 {[%clk 0:00:11.1]}
32. Qb7 {[%clk 0:00:27.9]} 32... Rd1+ {[%clk 0:00:12]} 33. Rxd1 {[%clk
0:00:29.1]} 33... Qxd1+ {[%clk 0:00:13.4]} 34. Kh2 {[%clk 0:00:31]} 1-0

[Event "***Titled Tuesday 3|2 Blitz"]
[Site "Chess.com"]
[Date "2017.02.07"]
[Round "1"]
[White "Kouzari"]
[Black "nOcHeaTiNgKiD"]
[Result "0-1"]
[WhiteElo "2482"]
[BlackElo "2164"]
[TimeControl "180+2"]
[EndTime "13:08:43 PST"]
[Termination "nOcHeaTiNgKiD won by resignation"]

1. d4 {[%clk 0:03:02]} 1... Nf6 {[%clk 0:03:00.5]} 2. c4 {[%clk 0:03:03.4]} 2...
g6 {[%clk 0:02:58.6]} 3. Nc3 {[%clk 0:03:04.5]} 3... Bg7 {[%clk 0:02:59.4]} 4.
e4 {[%clk 0:03:05.3]} 4... d6 {[%clk 0:03:00.5]} 5. f3 {[%clk 0:03:06.7]} 5...
O-O {[%clk 0:03:01]} 6. Be3 {[%clk 0:03:08.3]} 6... e5 {[%clk 0:03:02.1]} 7. d5
{[%clk 0:03:08.9]} 7... c6 {[%clk 0:03:02.4]} 8. Qd2 {[%clk 0:03:10.2]} 8...
cxd5 {[%clk 0:02:54.8]} 9. cxd5 {[%clk 0:03:12.1]} 9... a6 {[%clk 0:02:55.9]}
10. Bd3 {[%clk 0:03:12.4]} 10... Nbd7 {[%clk 0:02:56.2]} 11. Nge2 {[%clk
0:03:11.6]} 11... Nh5 {[%clk 0:02:55.5]} 12. O-O-O {[%clk 0:03:08.4]} 12... b5
{[%clk 0:02:54]} 13. b4 {[%clk 0:03:08.6]} 13... a5 {[%clk 0:02:48.2]} 14. a3
{[%clk 0:03:07.6]} 14... axb4 {[%clk 0:02:45.8]} 15. axb4 {[%clk 0:03:08.7]}
15... Nb6 {[%clk 0:02:40.8]} 16. Kb2 {[%clk 0:03:07.7]} 16... Nf4 {[%clk
0:02:24.7]} 17. Ra1 {[%clk 0:03:05.8]} 17... Nxd3+ {[%clk 0:02:13.3]} 18. Qxd3
{[%clk 0:03:04.9]} 18... Nc4+ {[%clk 0:02:14.4]} 19. Qxc4 {[%clk 0:02:47.2]}
19... Rxa1 {[%clk 0:02:02.4]} 20. Rxa1 {[%clk 0:02:34.4]} 20... bxc4 {[%clk
0:02:02.9]} 21. b5 {[%clk 0:02:36]} 21... Bd7 {[%clk 0:01:59.7]} 22. b6 {[%clk
0:02:36.9]} 22... Qb8 {[%clk 0:01:52.5]} 23. Ra7 {[%clk 0:02:37.5]} 23... Rd8
{[%clk 0:01:46.8]} 24. Nc1 {[%clk 0:02:33]} 24... Bh6 {[%clk 0:01:42.5]} 25. Bf2
{[%clk 0:02:26.5]} 25... f5 {[%clk 0:01:27.4]} 26. N1a2 {[%clk 0:02:26.6]} 26...
Bd2 {[%clk 0:01:22.1]} 27. Nb4 {[%clk 0:02:24.4]} 27... fxe4 {[%clk 0:01:13.3]}
28. Na6 {[%clk 0:02:09.2]} 28... Qxa7 {[%clk 0:01:03.7]} 29. bxa7 {[%clk
0:02:08.7]} 29... e3 {[%clk 0:01:04.5]} 30. Bh4 {[%clk 0:01:35.5]} 30... Ra8
{[%clk 0:01:04.6]} 31. Nb8 {[%clk 0:01:17.9]} 31... Rxa7 {[%clk 0:01:03.7]} 32.
Nxd7 {[%clk 0:01:19]} 32... Rxd7 {[%clk 0:00:56.8]} 33. Kc2 {[%clk 0:01:18.2]}
33... Kf7 {[%clk 0:00:54.9]} 34. Ne4 {[%clk 0:01:19.1]} 34... c3 {[%clk
0:00:50.6]} 35. Bg5 {[%clk 0:01:02]} 35... Kg7 {[%clk 0:00:38.8]} 36. Bf6+
{[%clk 0:00:47.8]} 36... Kf7 {[%clk 0:00:37.8]} 37. Bh4 {[%clk 0:00:46.3]} 37...
h6 {[%clk 0:00:38]} 38. Kd3 {[%clk 0:00:43.7]} 38... g5 {[%clk 0:00:38.2]} 39.
Bg3 {[%clk 0:00:43.8]} 39... Kg6 {[%clk 0:00:38.5]} 40. Nxc3 {[%clk 0:00:44.3]}
40... Bxc3 {[%clk 0:00:36.7]} 41. Kxc3 {[%clk 0:00:45.7]} 41... Ra7 {[%clk
0:00:36.5]} 42. Kd3 {[%clk 0:00:46.1]} 42... Ra3+ {[%clk 0:00:36.7]} 43. Ke4
{[%clk 0:00:47.2]} 43... e2 {[%clk 0:00:37.4]} 44. Bf2 {[%clk 0:00:45.8]} 44...
Ra1 {[%clk 0:00:36.9]} 0-1

[Event "***Titled Tuesday 3|2 Blitz"]
[Site "Chess.com"]
[Date "2017.02.07"]
[Round "1"]
[White "StegariuVlad"]
[Black "DanielNaroditsky"]
[Result "0-1"]
[WhiteElo "2392"]
[BlackElo "2719"]
[TimeControl "180+2"]
[EndTime "13:08:47 PST"]
[Termination "DanielNaroditsky won by resignation"]

1. d4 {[%clk 0:02:52.5]} 1... Nf6 {[%clk 0:03:00.8]} 2. Nf3 {[%clk 0:02:47]}
2... d5 {[%clk 0:03:00.2]} 3. e3 {[%clk 0:02:37.4]} 3... Bg4 {[%clk 0:03:00.3]}
4. h3 {[%clk 0:02:35.3]} 4... Bxf3 {[%clk 0:03:00.6]} 5. Qxf3 {[%clk 0:02:36.1]}
5... Nbd7 {[%clk 0:02:58.8]} 6. c4 {[%clk 0:02:27.5]} 6... e6 {[%clk 0:02:58.5]}
7. Nc3 {[%clk 0:02:28.2]} 7... c6 {[%clk 0:02:59.4]} 8. Bd2 {[%clk 0:02:28.5]}
8... Bb4 {[%clk 0:02:59.9]} 9. a3 {[%clk 0:02:29.2]} 9... Bxc3 {[%clk
0:03:01.2]} 10. Bxc3 {[%clk 0:02:30.6]} 10... O-O {[%clk 0:03:03.1]} 11. Bd3
{[%clk 0:02:30.5]} 11... Re8 {[%clk 0:02:58.9]} 12. O-O {[%clk 0:02:28.5]} 12...
e5 {[%clk 0:03:00.3]} 13. dxe5 {[%clk 0:02:29.9]} 13... Nxe5 {[%clk 0:03:02.2]}
14. Bxe5 {[%clk 0:02:31.2]} 14... Rxe5 {[%clk 0:03:04.1]} 15. Rfd1 {[%clk
0:02:31.7]} 15... Qe7 {[%clk 0:03:00.2]} 16. cxd5 {[%clk 0:02:31.2]} 16... Rxd5
{[%clk 0:03:01.1]} 17. Bc4 {[%clk 0:02:30.9]} 17... Rxd1+ {[%clk 0:02:52.5]} 18.
Rxd1 {[%clk 0:02:31]} 18... Rd8 {[%clk 0:02:54.4]} 19. Qe2 {[%clk 0:02:16.8]}
19... Rxd1+ {[%clk 0:02:52.5]} 20. Qxd1 {[%clk 0:02:17.5]} 20... Qd7 {[%clk
0:02:54.4]} 21. Qxd7 {[%clk 0:02:17]} 21... Nxd7 {[%clk 0:02:56.3]} 22. Kf1
{[%clk 0:02:16.4]} 22... Kf8 {[%clk 0:02:57.6]} 23. Ke2 {[%clk 0:02:17.5]} 23...
Ke7 {[%clk 0:02:59.1]} 24. e4 {[%clk 0:02:17.6]} 24... f6 {[%clk 0:02:52.6]} 25.
Ke3 {[%clk 0:02:18.7]} 25... Kd6 {[%clk 0:02:51.6]} 26. Bg8 {[%clk 0:02:17.9]}
26... h6 {[%clk 0:02:50.2]} 27. f4 {[%clk 0:02:19.1]} 27... a5 {[%clk
0:02:45.9]} 28. h4 {[%clk 0:02:16.4]} 28... Nc5 {[%clk 0:02:43.6]} 29. Kd4
{[%clk 0:02:06]} 29... b6 {[%clk 0:02:31.8]} 30. e5+ {[%clk 0:02:03.1]} 30...
fxe5+ {[%clk 0:02:31.9]} 31. fxe5+ {[%clk 0:02:05]} 31... Ke7 {[%clk 0:02:33.8]}
32. b4 {[%clk 0:02:04.7]} 32... axb4 {[%clk 0:02:31.7]} 33. axb4 {[%clk
0:02:05.8]} 33... Ne6+ {[%clk 0:02:33.4]} 34. Kc4 {[%clk 0:02:05.7]} 34... Nf4
{[%clk 0:01:53.1]} 35. g3 {[%clk 0:01:48.3]} 35... Ne2 {[%clk 0:01:50.7]} 36. g4
{[%clk 0:01:48.7]} 36... Nf4 {[%clk 0:01:51.9]} 37. Kd4 {[%clk 0:01:47.2]} 37...
Ne6+ {[%clk 0:01:48]} 38. Ke4 {[%clk 0:01:47.4]} 38... Nc7 {[%clk 0:01:47.6]}
39. Bc4 {[%clk 0:01:47]} 39... b5 {[%clk 0:01:33.2]} 40. Be2 {[%clk 0:01:22]}
40... Nd5 {[%clk 0:01:34.3]} 41. Kd4 {[%clk 0:01:22.7]} 41... Nxb4 {[%clk
0:01:26.6]} 42. Kc5 {[%clk 0:01:24]} 42... Nc2 {[%clk 0:01:20.1]} 43. Bd3 {[%clk
0:01:24.6]} 43... Ne3 {[%clk 0:01:21.4]} 44. g5 {[%clk 0:01:19.1]} 44... hxg5
{[%clk 0:01:21.6]} 45. hxg5 {[%clk 0:01:20.4]} 45... Ng4 {[%clk 0:01:23.2]} 46.
Bf5 {[%clk 0:00:35]} 46... Nxe5 {[%clk 0:01:20.5]} 47. Bh3 {[%clk 0:00:36.1]}
47... g6 {[%clk 0:01:11.2]} 48. Bc8 {[%clk 0:00:36.2]} 48... Kd8 {[%clk
0:01:12.4]} 49. Be6 {[%clk 0:00:35.3]} 49... Kc7 {[%clk 0:01:12.7]} 50. Kd4
{[%clk 0:00:34.4]} 50... Nf3+ {[%clk 0:01:13.1]} 51. Kc5 {[%clk 0:00:35.1]}
51... Nxg5 {[%clk 0:01:12.7]} 52. Bg4 {[%clk 0:00:36.2]} 52... Ne4+ {[%clk
0:01:12.1]} 53. Kd4 {[%clk 0:00:37.2]} 53... Nf6 {[%clk 0:01:13.8]} 54. Bf3
{[%clk 0:00:37.2]} 54... Kd6 {[%clk 0:01:15.2]} 55. Bg2 {[%clk 0:00:38.1]} 55...
c5+ {[%clk 0:01:16]} 56. Ke3 {[%clk 0:00:39.6]} 56... Ke5 {[%clk 0:01:14.2]} 57.
Bf1 {[%clk 0:00:39.8]} 57... c4 {[%clk 0:01:15.4]} 0-1

[Event "***Titled Tuesday 3|2 Blitz"]
[Site "Chess.com"]
[Date "2017.02.07"]
[Round "1"]
[White "olgerts_indricans"]
[Black "Paralinch"]
[Result "0-1"]
[WhiteElo "2340"]
[BlackElo "2626"]
[TimeControl "180+2"]
[EndTime "13:08:49 PST"]
[Termination "Paralinch won by resignation"]

1. e4 {[%clk 0:03:02]} 1... c6 {[%clk 0:03:00.9]} 2. Nc3 {[%clk 0:03:00]} 2...
d5 {[%clk 0:03:02]} 3. d4 {[%clk 0:02:57.6]} 3... dxe4 {[%clk 0:03:02.8]} 4.
Nxe4 {[%clk 0:02:59.5]} 4... Bf5 {[%clk 0:03:04.3]} 5. Ng3 {[%clk 0:03:00.2]}
5... Bg6 {[%clk 0:03:05.5]} 6. Nf3 {[%clk 0:02:58.3]} 6... e6 {[%clk 0:03:06]}
7. h4 {[%clk 0:02:58]} 7... h6 {[%clk 0:03:07.2]} 8. Bd3 {[%clk 0:02:55.6]} 8...
Bxd3 {[%clk 0:03:07.5]} 9. Qxd3 {[%clk 0:02:57.5]} 9... Nf6 {[%clk 0:03:08.6]}
10. Bd2 {[%clk 0:02:53]} 10... Be7 {[%clk 0:03:03.9]} 11. O-O-O {[%clk
0:02:48.4]} 11... O-O {[%clk 0:03:04.8]} 12. Ne4 {[%clk 0:02:39.4]} 12... Nxe4
{[%clk 0:03:05.7]} 13. Qxe4 {[%clk 0:02:41.3]} 13... Qd5 {[%clk 0:03:07.3]} 14.
Qxd5 {[%clk 0:02:38.9]} 14... cxd5 {[%clk 0:03:08.4]} 15. Ne5 {[%clk 0:02:34.4]}
15... Nc6 {[%clk 0:03:01.5]} 16. Bf4 {[%clk 0:02:16.2]} 16... Rac8 {[%clk
0:02:56.3]} 17. Kb1 {[%clk 0:02:09.2]} 17... h5 {[%clk 0:02:45.1]} 18. c3 {[%clk
0:02:06.5]} 18... b5 {[%clk 0:02:39.2]} 19. Rc1 {[%clk 0:01:27.7]} 19... a5
{[%clk 0:02:38.2]} 20. Nf3 {[%clk 0:01:03.8]} 20... a4 {[%clk 0:02:24.3]} 21. a3
{[%clk 0:01:02.6]} 21... Na5 {[%clk 0:02:25.3]} 22. Ne5 {[%clk 0:00:59]} 22...
f6 {[%clk 0:02:15]} 23. Ng6 {[%clk 0:00:42.4]} 23... Rfe8 {[%clk 0:02:15.9]} 24.
Nxe7+ {[%clk 0:00:44.3]} 24... Rxe7 {[%clk 0:02:17]} 25. Bd6 {[%clk 0:00:46.2]}
25... Ree8 {[%clk 0:02:12.7]} 26. f3 {[%clk 0:00:45.5]} 26... Nc4 {[%clk
0:02:13.7]} 27. Bb4 {[%clk 0:00:44.2]} 27... Kf7 {[%clk 0:02:11.8]} 28. Rcd1
{[%clk 0:00:43]} 28... e5 {[%clk 0:02:07.8]} 29. dxe5 {[%clk 0:00:35.9]} 29...
Rxe5 {[%clk 0:02:09.7]} 30. Rhe1 {[%clk 0:00:29.6]} 30... Rce8 {[%clk
0:02:10.2]} 31. Rxe5 {[%clk 0:00:29.7]} 31... Rxe5 {[%clk 0:02:12.1]} 32. Bc5
{[%clk 0:00:24.6]} 32... Ke6 {[%clk 0:02:03.3]} 33. Bf2 {[%clk 0:00:18.7]} 33...
Re2 {[%clk 0:01:41.1]} 34. Re1 {[%clk 0:00:19.9]} 34... Rxe1+ {[%clk 0:01:42.1]}
35. Bxe1 {[%clk 0:00:21.8]} 35... Kf5 {[%clk 0:01:43.3]} 36. g3 {[%clk
0:00:20.6]} 36... g5 {[%clk 0:01:43.3]} 37. hxg5 {[%clk 0:00:20.4]} 37... fxg5
{[%clk 0:01:44.1]} 38. Kc2 {[%clk 0:00:21.8]} 38... Ne5 {[%clk 0:01:40.6]} 39.
f4 {[%clk 0:00:18.9]} 39... gxf4 {[%clk 0:01:41.6]} 40. gxf4 {[%clk 0:00:20.8]}
40... Kxf4 {[%clk 0:01:36.1]} 41. b3 {[%clk 0:00:21.9]} 41... Ke4 {[%clk
0:01:32.4]} 42. bxa4 {[%clk 0:00:22.7]} 42... bxa4 {[%clk 0:01:33.5]} 43. Bh4
{[%clk 0:00:24]} 43... Nc4 {[%clk 0:01:34.3]} 44. Be7 {[%clk 0:00:23.5]} 44...
Ne5 {[%clk 0:01:25.9]} 45. Kd2 {[%clk 0:00:24]} 45... h4 {[%clk 0:01:26.4]} 46.
Ke2 {[%clk 0:00:25]} 46... h3 {[%clk 0:01:23.8]} 47. Kf2 {[%clk 0:00:26.3]}
47... Kd3 {[%clk 0:01:20.9]} 48. Kg3 {[%clk 0:00:25.6]} 48... Nc4 {[%clk
0:01:20]} 49. Bf6 {[%clk 0:00:26.1]} 49... Nxa3 {[%clk 0:01:20.5]} 50. Kxh3
{[%clk 0:00:27.6]} 50... Nb5 {[%clk 0:01:19]} 51. Kg3 {[%clk 0:00:28.5]} 51...
a3 {[%clk 0:01:19.3]} 52. Kf3 {[%clk 0:00:29]} 52... Nxc3 {[%clk 0:01:18.7]} 0-1